[Event "*** Titled Tuesday Blitz"]
[Site "Chess.com"]
[Date "2020.04.07"]
[Round "7"]
[White "Oleg_Papayan"]
[Black "florianschwabeneder"]
[Result "0-1"]
[WhiteElo "2344"]
[BlackElo "2521"]
[TimeControl "180+1"]
[EndTime "14:19:01 PDT"]
[Termination "florianschwabeneder won by resignation"]

1. e4 {[%clk 0:02:45.6]} 1... e5 {[%clk 0:02:58.7]} 2. Nf3 {[%clk 0:02:45.3]}
2... Nc6 {[%clk 0:02:58.8]} 3. Bb5 {[%clk 0:02:45.3]} 3... a6 {[%clk 0:02:58.2]}
4. Bxc6 {[%clk 0:02:45.6]} 4... dxc6 {[%clk 0:02:58.2]} 5. Nc3 {[%clk
0:02:46.1]} 5... Bd6 {[%clk 0:02:51.4]} 6. d4 {[%clk 0:02:45.4]} 6... exd4
{[%clk 0:02:51.6]} 7. Qxd4 {[%clk 0:02:45]} 7... f6 {[%clk 0:02:51.6]} 8. Be3
{[%clk 0:02:44.3]} 8... Ne7 {[%clk 0:02:51.4]} 9. O-O-O {[%clk 0:02:43.9]} 9...
O-O {[%clk 0:02:33.4]} 10. Qc4+ {[%clk 0:02:43.4]} 10... Kh8 {[%clk 0:02:32.9]}
11. Bc5 {[%clk 0:02:43.1]} 11... Ng6 {[%clk 0:02:20]} 12. Bxd6 {[%clk
0:02:37.1]} 12... cxd6 {[%clk 0:02:20.1]} 13. Qd4 {[%clk 0:02:36.5]} 13... Bg4
{[%clk 0:02:15.8]} 14. Qxd6 {[%clk 0:02:30.5]} 14... Qxd6 {[%clk 0:01:46.7]} 15.
Rxd6 {[%clk 0:02:31.4]} 15... Bxf3 {[%clk 0:01:46.8]} 16. gxf3 {[%clk
0:02:31.1]} 16... f5 {[%clk 0:01:47.3]} 17. Rd2 {[%clk 0:01:56.5]} 17... Nh4
{[%clk 0:01:39.6]} 18. Rd7 {[%clk 0:01:50.8]} 18... b5 {[%clk 0:01:34.8]} 19.
Rg1 {[%clk 0:01:38.9]} 19... Ng6 {[%clk 0:01:30]} 20. h4 {[%clk 0:01:30.8]}
20... Ne5 {[%clk 0:01:09.8]} 21. Rdxg7 {[%clk 0:01:30.1]} 21... Nxf3 {[%clk
0:01:10]} 22. R1g3 {[%clk 0:01:29.3]} 22... fxe4 {[%clk 0:01:08]} 23. Nxe4
{[%clk 0:01:29.2]} 23... Rae8 {[%clk 0:01:06.9]} 24. R7g4 {[%clk 0:01:12.6]}
24... Nh2 {[%clk 0:01:05.4]} 25. Nd6 {[%clk 0:01:02.4]} 25... Re1+ {[%clk
0:00:56.8]} 26. Kd2 {[%clk 0:01:02.4]} 26... Re7 {[%clk 0:00:56.6]} 27. Re4
{[%clk 0:00:49.9]} 27... Rxe4 {[%clk 0:00:50.6]} 28. Nxe4 {[%clk 0:00:47.7]}
28... Nf1+ {[%clk 0:00:50.7]} 29. Ke2 {[%clk 0:00:46.1]} 29... Nxg3+ {[%clk
0:00:51.6]} 30. fxg3 {[%clk 0:00:47]} 30... Kg7 {[%clk 0:00:50.8]} 31. Ke3
{[%clk 0:00:46.9]} 31... h5 {[%clk 0:00:49.2]} 32. Nc5 {[%clk 0:00:46.2]} 32...
Re8+ {[%clk 0:00:45.5]} 33. Kf3 {[%clk 0:00:43]} 33... a5 {[%clk 0:00:43.5]} 34.
a4 {[%clk 0:00:37.7]} 34... b4 {[%clk 0:00:38.9]} 35. Nb3 {[%clk 0:00:33.8]}
35... Re5 {[%clk 0:00:36.5]} 36. Nd4 {[%clk 0:00:32.9]} 36... Kf6 {[%clk
0:00:23.1]} 37. Nxc6 {[%clk 0:00:28.1]} 37... Rc5 {[%clk 0:00:23]} 38. Nd4
{[%clk 0:00:27.8]} 38... Rc4 {[%clk 0:00:22.8]} 39. Ke3 {[%clk 0:00:25.7]} 39...
Ke5 {[%clk 0:00:22.2]} 40. Nf3+ {[%clk 0:00:24.8]} 40... Kd5 {[%clk 0:00:21.9]}
41. Kd3 {[%clk 0:00:20.7]} 41... Rg4 {[%clk 0:00:21]} 42. c4+ {[%clk 0:00:17.2]}
42... bxc3 {[%clk 0:00:20.5]} 43. bxc3 {[%clk 0:00:17.5]} 43... Rxg3 {[%clk
0:00:19.3]} 44. Ke3 {[%clk 0:00:18.4]} 44... Kc4 {[%clk 0:00:18.6]} 45. Kf4
{[%clk 0:00:19.3]} 45... Rg4+ {[%clk 0:00:17.6]} 46. Kf5 {[%clk 0:00:19.6]}
46... Kxc3 {[%clk 0:00:17.9]} 0-1

[Event "*** Titled Tuesday Blitz"]
[Site "Chess.com"]
[Date "2020.04.07"]
[Round "7"]
[White "AEMEffi"]
[Black "aloe_normansen"]
[Result "0-1"]
[WhiteElo "2333"]
[BlackElo "2202"]
[TimeControl "180+1"]
[EndTime "14:19:03 PDT"]
[Termination "aloe_normansen won on time"]

1. d4 {[%clk 0:03:00.9]} 1... Nf6 {[%clk 0:02:58.7]} 2. c4 {[%clk 0:03:01]} 2...
g6 {[%clk 0:02:58.3]} 3. Nc3 {[%clk 0:03:01.4]} 3... Bg7 {[%clk 0:02:58.5]} 4.
e4 {[%clk 0:03:02]} 4... O-O {[%clk 0:02:58.4]} 5. h3 {[%clk 0:03:02.6]} 5... d6
{[%clk 0:02:58.1]} 6. Nf3 {[%clk 0:03:02.1]} 6... e5 {[%clk 0:02:54.6]} 7. d5
{[%clk 0:03:00.5]} 7... a5 {[%clk 0:02:53]} 8. Be3 {[%clk 0:02:59]} 8... Na6
{[%clk 0:02:51.4]} 9. Nd2 {[%clk 0:02:58.4]} 9... Qe8 {[%clk 0:02:41.1]} 10. Be2
{[%clk 0:02:54.1]} 10... Bd7 {[%clk 0:02:25.6]} 11. g4 {[%clk 0:02:36]} 11...
Qe7 {[%clk 0:02:04.5]} 12. h4 {[%clk 0:02:27.6]} 12... c6 {[%clk 0:01:46.9]} 13.
h5 {[%clk 0:02:13.8]} 13... Rfc8 {[%clk 0:01:28.4]} 14. hxg6 {[%clk 0:01:57.2]}
14... fxg6 {[%clk 0:01:23.2]} 15. g5 {[%clk 0:01:56.9]} 15... Ne8 {[%clk
0:01:21.1]} 16. Bg4 {[%clk 0:01:56.6]} 16... Nb4 {[%clk 0:01:01.5]} 17. Bxd7
{[%clk 0:01:08.3]} 17... Qxd7 {[%clk 0:01:00.2]} 18. Nf3 {[%clk 0:01:04.1]}
18... cxd5 {[%clk 0:00:47.6]} 19. cxd5 {[%clk 0:00:57.2]} 19... b5 {[%clk
0:00:26.5]} 20. Qe2 {[%clk 0:00:34.6]} 20... Nc7 {[%clk 0:00:25.7]} 21. Rc1
{[%clk 0:00:28]} 21... Nba6 {[%clk 0:00:25]} 22. Nd2 {[%clk 0:00:20.4]} 22... b4
{[%clk 0:00:24.6]} 23. Nd1 {[%clk 0:00:17.8]} 23... Nb5 {[%clk 0:00:23.8]} 24.
Rc6 {[%clk 0:00:13.1]} 24... Rxc6 {[%clk 0:00:20.3]} 25. dxc6 {[%clk 0:00:13.3]}
25... Qxc6 {[%clk 0:00:20.4]} 26. Qg4 {[%clk 0:00:14]} 26... Re8 {[%clk
0:00:19.6]} 27. Qh4 {[%clk 0:00:13]} 27... Nd4 {[%clk 0:00:16.8]} 28. Qxh7+
{[%clk 0:00:11.2]} 28... Kf7 {[%clk 0:00:17.2]} 29. Rh6 {[%clk 0:00:07.3]} 29...
Nc2+ {[%clk 0:00:12]} 30. Kf1 {[%clk 0:00:05.7]} 30... Qb5+ {[%clk 0:00:11.8]}
31. Kg1 {[%clk 0:00:05.2]} 31... Re6 {[%clk 0:00:07.8]} 0-1

[Event "*** Titled Tuesday Blitz"]
[Site "Chess.com"]
[Date "2020.04.07"]
[Round "7"]
[White "Alonmindlin"]
[Black "wild_cat99"]
[Result "1-0"]
[WhiteElo "2665"]
[BlackElo "2525"]
[TimeControl "180+1"]
[EndTime "14:19:04 PDT"]
[Termination "Alonmindlin won by resignation"]

1. d4 {[%clk 0:03:00.9]} 1... Nf6 {[%clk 0:02:58.9]} 2. c4 {[%clk 0:02:56.1]}
2... g6 {[%clk 0:02:59.2]} 3. Nc3 {[%clk 0:02:56.4]} 3... d5 {[%clk 0:02:59.5]}
4. cxd5 {[%clk 0:02:57.3]} 4... Nxd5 {[%clk 0:03:00.4]} 5. g3 {[%clk 0:02:58.1]}
5... Bg7 {[%clk 0:03:00.3]} 6. Bg2 {[%clk 0:02:58.4]} 6... Nxc3 {[%clk
0:03:00.7]} 7. bxc3 {[%clk 0:02:58.9]} 7... O-O {[%clk 0:03:01.6]} 8. Nf3 {[%clk
0:02:59.4]} 8... c5 {[%clk 0:03:01.9]} 9. O-O {[%clk 0:03:00]} 9... Nc6 {[%clk
0:03:02.4]} 10. Rb1 {[%clk 0:03:00.6]} 10... Qc7 {[%clk 0:03:01.4]} 11. Ba3
{[%clk 0:02:49.6]} 11... b6 {[%clk 0:03:00.7]} 12. dxc5 {[%clk 0:02:48.3]} 12...
Bxc3 {[%clk 0:02:54.4]} 13. Rc1 {[%clk 0:02:43.8]} 13... Bf6 {[%clk 0:02:48.5]}
14. cxb6 {[%clk 0:02:39.3]} 14... axb6 {[%clk 0:02:47.8]} 15. Bb4 {[%clk
0:02:27.1]} 15... Bb7 {[%clk 0:02:43.8]} 16. Bc3 {[%clk 0:02:25.7]} 16... Bxc3
{[%clk 0:02:06.5]} 17. Rxc3 {[%clk 0:02:26.6]} 17... Rxa2 {[%clk 0:02:06.4]} 18.
Nd4 {[%clk 0:02:12.1]} 18... Rd8 {[%clk 0:02:05.9]} 19. Bxc6 {[%clk 0:01:58.1]}
19... Bxc6 {[%clk 0:02:03.1]} 20. Rxc6 {[%clk 0:01:55.8]} 20... Qd7 {[%clk
0:01:43.5]} 21. Rc4 {[%clk 0:01:35.3]} 21... e5 {[%clk 0:01:43.5]} 22. Qb3
{[%clk 0:01:34.3]} 22... Rda8 {[%clk 0:01:32.9]} 23. Nf3 {[%clk 0:01:29.7]}
23... Rxe2 {[%clk 0:01:31.6]} 24. Qxb6 {[%clk 0:01:24.9]} 24... Qd5 {[%clk
0:01:29.3]} 25. Qc6 {[%clk 0:01:23.5]} 25... Qxc6 {[%clk 0:01:21.6]} 26. Rxc6
{[%clk 0:01:24.4]} 26... Ra3 {[%clk 0:01:21.1]} 27. Re1 {[%clk 0:01:18.7]} 27...
Rxe1+ {[%clk 0:01:19.1]} 28. Nxe1 {[%clk 0:01:19.6]} 28... Ra1 {[%clk 0:01:19]}
29. Kf1 {[%clk 0:01:19.7]} 29... g5 {[%clk 0:01:16.7]} 30. g4 {[%clk 0:01:19]}
30... Ra4 {[%clk 0:01:13.1]} 31. h3 {[%clk 0:01:11.1]} 31... h5 {[%clk
0:01:11.5]} 32. gxh5 {[%clk 0:01:11.2]} 32... Rh4 {[%clk 0:01:11.2]} 33. Kg2
{[%clk 0:01:12.1]} 33... Rxh5 {[%clk 0:01:10.7]} 34. Nf3 {[%clk 0:01:10.6]}
34... e4 {[%clk 0:01:08.5]} 35. Ne5 {[%clk 0:01:06.6]} 35... f5 {[%clk
0:01:08.3]} 36. Rg6+ {[%clk 0:01:01.3]} 36... Kh7 {[%clk 0:01:03.1]} 37. Rc6
{[%clk 0:00:58.4]} 37... Kg7 {[%clk 0:00:58.7]} 38. Kg3 {[%clk 0:00:56.1]} 38...
f4+ {[%clk 0:00:50.7]} 39. Kg4 {[%clk 0:00:50.9]} 39... Rh4+ {[%clk 0:00:50.7]}
40. Kxg5 {[%clk 0:00:51.4]} 40... Rxh3 {[%clk 0:00:51.5]} 41. Rc7+ {[%clk
0:00:51.6]} 41... Kf8 {[%clk 0:00:49.7]} 42. Kf6 {[%clk 0:00:52]} 42... Rh6+
{[%clk 0:00:46.8]} 43. Ng6+ {[%clk 0:00:52.1]} 43... Ke8 {[%clk 0:00:47.1]} 44.
Re7+ {[%clk 0:00:52.3]} 44... Kd8 {[%clk 0:00:47.2]} 45. Rxe4 {[%clk 0:00:53.2]}
45... f3 {[%clk 0:00:40.5]} 46. Rf4 {[%clk 0:00:51.1]} 46... Rh2 {[%clk
0:00:38.5]} 47. Rxf3 {[%clk 0:00:50.5]} 47... Rg2 {[%clk 0:00:37.8]} 48. Ne5
{[%clk 0:00:49.8]} 48... Ke8 {[%clk 0:00:36.9]} 49. Rf5 {[%clk 0:00:46.7]} 49...
Rh2 {[%clk 0:00:33.5]} 50. f4 {[%clk 0:00:46.5]} 50... Rh6+ {[%clk 0:00:33.6]}
51. Ng6 {[%clk 0:00:47]} 51... Rh7 {[%clk 0:00:29.3]} 52. Re5+ {[%clk
0:00:47.9]} 52... Kd8 {[%clk 0:00:28.9]} 53. f5 {[%clk 0:00:47.8]} 53... Ra7
{[%clk 0:00:28.7]} 54. Kg5 {[%clk 0:00:46.6]} 54... Ra6 {[%clk 0:00:27.1]} 55.
f6 {[%clk 0:00:46.8]} 55... Kd7 {[%clk 0:00:24.5]} 56. f7 {[%clk 0:00:47]} 56...
Ra8 {[%clk 0:00:24.5]} 57. f8=Q {[%clk 0:00:45.8]} 1-0

[Event "*** Titled Tuesday Blitz"]
[Site "Chess.com"]
[Date "2020.04.07"]
[Round "7"]
[White "BillCoe"]
[Black "lelya96"]
[Result "0-1"]
[WhiteElo "2021"]
[BlackElo "2252"]
[TimeControl "180+1"]
[EndTime "14:19:04 PDT"]
[Termination "lelya96 won on time"]

1. e4 {[%clk 0:03:00.9]} 1... e5 {[%clk 0:02:59.5]} 2. Nf3 {[%clk 0:03:00.4]}
2... Nc6 {[%clk 0:02:59.7]} 3. Bb5 {[%clk 0:03:00.7]} 3... a6 {[%clk 0:02:59.3]}
4. Ba4 {[%clk 0:03:01.3]} 4... b5 {[%clk 0:02:58.9]} 5. Bb3 {[%clk 0:02:59.5]}
5... Nf6 {[%clk 0:02:59.2]} 6. O-O {[%clk 0:02:59.4]} 6... Bc5 {[%clk
0:02:58.9]} 7. Re1 {[%clk 0:02:57]} 7... O-O {[%clk 0:02:58.6]} 8. c3 {[%clk
0:02:56.8]} 8... d6 {[%clk 0:02:57.9]} 9. d4 {[%clk 0:02:54.9]} 9... Bb6 {[%clk
0:02:57]} 10. h3 {[%clk 0:02:53.9]} 10... h6 {[%clk 0:02:56]} 11. a4 {[%clk
0:02:45.8]} 11... Bb7 {[%clk 0:02:55.7]} 12. d5 {[%clk 0:02:43.1]} 12... Nb8
{[%clk 0:02:51]} 13. axb5 {[%clk 0:02:35.5]} 13... axb5 {[%clk 0:02:50.7]} 14.
Rxa8 {[%clk 0:02:35.3]} 14... Bxa8 {[%clk 0:02:50.8]} 15. Qe2 {[%clk 0:02:32.9]}
15... Nbd7 {[%clk 0:02:50.4]} 16. Qxb5 {[%clk 0:02:27.2]} 16... Qb8 {[%clk
0:02:43.9]} 17. Na3 {[%clk 0:02:09.5]} 17... Nc5 {[%clk 0:02:37.8]} 18. Bc2
{[%clk 0:02:07]} 18... Qa7 {[%clk 0:02:36]} 19. Nc4 {[%clk 0:01:59.5]} 19... Rb8
{[%clk 0:02:20.9]} 20. Nxb6 {[%clk 0:01:59]} 20... Rxb6 {[%clk 0:02:20.9]} 21.
Qc4 {[%clk 0:01:55.3]} 21... c6 {[%clk 0:02:09.4]} 22. dxc6 {[%clk 0:01:28.9]}
22... Rxc6 {[%clk 0:02:04.8]} 23. Bb3 {[%clk 0:01:14.4]} 23... Nxb3 {[%clk
0:01:59.6]} 24. Qxb3 {[%clk 0:01:13.9]} 24... Rb6 {[%clk 0:01:48.3]} 25. Qc2
{[%clk 0:01:12.1]} 25... Qa2 {[%clk 0:01:44.9]} 26. Nd2 {[%clk 0:01:00]} 26...
d5 {[%clk 0:01:28.4]} 27. exd5 {[%clk 0:00:59.3]} 27... Qxd5 {[%clk 0:01:27.9]}
28. Nf3 {[%clk 0:00:47.6]} 28... e4 {[%clk 0:01:19.3]} 29. Nd4 {[%clk
0:00:38.7]} 29... Nh5 {[%clk 0:00:49.4]} 30. Be3 {[%clk 0:00:33]} 30... Rg6
{[%clk 0:00:47]} 31. c4 {[%clk 0:00:27]} 31... Qd7 {[%clk 0:00:43.3]} 32. Kh2
{[%clk 0:00:19.7]} 32... f5 {[%clk 0:00:36.5]} 33. c5 {[%clk 0:00:15.9]} 33...
f4 {[%clk 0:00:31.5]} 34. c6 {[%clk 0:00:15.9]} 34... Bxc6 {[%clk 0:00:27.8]}
35. Nxc6 {[%clk 0:00:14.6]} 35... Rxc6 {[%clk 0:00:23.1]} 36. Qb3+ {[%clk
0:00:12.4]} 36... Kh7 {[%clk 0:00:20.6]} 37. Bc1 {[%clk 0:00:08.2]} 37... Qf5
{[%clk 0:00:16.3]} 38. Qb4 {[%clk 0:00:06.3]} 38... Re6 {[%clk 0:00:15.8]} 39.
Qd4 {[%clk 0:00:05.2]} 39... f3 {[%clk 0:00:15.8]} 40. b3 {[%clk 0:00:03.9]}
40... fxg2 {[%clk 0:00:14.5]} 41. Bb2 {[%clk 0:00:02.7]} 41... Qf4+ {[%clk
0:00:13.6]} 42. Kxg2 {[%clk 0:00:02.4]} 42... Qg5+ {[%clk 0:00:13.6]} 43. Kh2
{[%clk 0:00:02]} 43... Rg6 {[%clk 0:00:12.6]} 0-1

[Event "*** Titled Tuesday Blitz"]
[Site "Chess.com"]
[Date "2020.04.07"]
[Round "7"]
[White "VincentKeymer"]
[Black "sergiochess83"]
[Result "0-1"]
[WhiteElo "2662"]
[BlackElo "2843"]
[TimeControl "180+1"]
[EndTime "14:19:06 PDT"]
[Termination "sergiochess83 won by checkmate"]

1. Nf3 {[%clk 0:00:59.1]} 1... d5 {[%clk 0:02:58]} 2. g3 {[%clk 0:00:59.5]} 2...
c6 {[%clk 0:02:51]} 3. Bg2 {[%clk 0:01:00.1]} 3... Bg4 {[%clk 0:02:51.5]} 4. O-O
{[%clk 0:01:01]} 4... e6 {[%clk 0:02:51.1]} 5. d3 {[%clk 0:01:01.5]} 5... Bd6
{[%clk 0:02:46.5]} 6. Nbd2 {[%clk 0:01:02.2]} 6... Ne7 {[%clk 0:02:45.8]} 7. b3
{[%clk 0:01:02.7]} 7... O-O {[%clk 0:02:45.1]} 8. Bb2 {[%clk 0:01:03.4]} 8...
Nd7 {[%clk 0:02:33.4]} 9. Qe1 {[%clk 0:01:03.1]} 9... a5 {[%clk 0:02:23.5]} 10.
h3 {[%clk 0:01:03.4]} 10... Bh5 {[%clk 0:02:22.7]} 11. a3 {[%clk 0:01:03.8]}
11... c5 {[%clk 0:02:17.4]} 12. e4 {[%clk 0:01:04.2]} 12... a4 {[%clk
0:02:15.2]} 13. e5 {[%clk 0:00:59.7]} 13... Bc7 {[%clk 0:02:14.2]} 14. b4 {[%clk
0:01:00.3]} 14... Nc6 {[%clk 0:01:41.5]} 15. b5 {[%clk 0:00:58.6]} 15... Ne7
{[%clk 0:01:37.5]} 16. Qe2 {[%clk 0:00:57.5]} 16... Ba5 {[%clk 0:01:33.6]} 17.
g4 {[%clk 0:00:56.8]} 17... Bg6 {[%clk 0:01:33.3]} 18. Rad1 {[%clk 0:00:56.2]}
18... c4 {[%clk 0:01:16.4]} 19. dxc4 {[%clk 0:00:55]} 19... Bxc2 {[%clk
0:01:15.4]} 20. Rc1 {[%clk 0:00:55.3]} 20... Bg6 {[%clk 0:01:12.7]} 21. cxd5
{[%clk 0:00:55]} 21... Nxd5 {[%clk 0:01:11.9]} 22. Ne4 {[%clk 0:00:54.1]} 22...
Nf4 {[%clk 0:01:06.8]} 23. Qe3 {[%clk 0:00:54.4]} 23... Nxg2 {[%clk 0:00:59.4]}
24. Kxg2 {[%clk 0:00:55.3]} 24... Nb6 {[%clk 0:01:00]} 25. Nd6 {[%clk
0:00:55.1]} 25... Nd5 {[%clk 0:00:59.2]} 26. Qd4 {[%clk 0:00:55.4]} 26... Bb6
{[%clk 0:00:55.8]} 27. Qd2 {[%clk 0:00:55.5]} 27... Qd7 {[%clk 0:00:51.9]} 28.
Rfd1 {[%clk 0:00:55.3]} 28... f5 {[%clk 0:00:41.8]} 29. Ng5 {[%clk 0:00:29.6]}
29... fxg4 {[%clk 0:00:40.5]} 30. Bd4 {[%clk 0:00:28.8]} 30... Nf4+ {[%clk
0:00:33.5]} 31. Kh2 {[%clk 0:00:24.8]} 31... Bxd4 {[%clk 0:00:30.9]} 32. Qxd4
{[%clk 0:00:25]} 32... Ne2 {[%clk 0:00:30.9]} 33. Qxg4 {[%clk 0:00:25.4]} 33...
Nxc1 {[%clk 0:00:29.2]} 34. Rxc1 {[%clk 0:00:24.7]} 34... Rxf2+ {[%clk
0:00:23.4]} 35. Kg1 {[%clk 0:00:25]} 35... Rf5 {[%clk 0:00:17.8]} 36. h4 {[%clk
0:00:22.9]} 36... Rxe5 {[%clk 0:00:15.5]} 37. Rd1 {[%clk 0:00:22.5]} 37... Qe7
{[%clk 0:00:11.8]} 38. Nf3 {[%clk 0:00:22.5]} 38... Rd5 {[%clk 0:00:10.7]} 39.
Rxd5 {[%clk 0:00:19.4]} 39... exd5 {[%clk 0:00:11.6]} 40. Nf5 {[%clk 0:00:17.4]}
40... Bxf5 {[%clk 0:00:11.4]} 41. Qxf5 {[%clk 0:00:18.3]} 41... Qc5+ {[%clk
0:00:11]} 42. Kg2 {[%clk 0:00:17.2]} 42... Rf8 {[%clk 0:00:10.8]} 43. Qe6+
{[%clk 0:00:17.5]} 43... Kh8 {[%clk 0:00:11.2]} 44. Ng5 {[%clk 0:00:17.3]} 44...
Qf2+ {[%clk 0:00:11.2]} 45. Kh3 {[%clk 0:00:17.4]} 45... Qf1+ {[%clk 0:00:11.3]}
46. Kh2 {[%clk 0:00:17.4]} 46... Qf4+ {[%clk 0:00:10.2]} 47. Kg1 {[%clk
0:00:16.6]} 47... Qf1+ {[%clk 0:00:09.3]} 48. Kh2 {[%clk 0:00:16.6]} 48... Rf2+
{[%clk 0:00:08.8]} 49. Kg3 {[%clk 0:00:16.4]} 49... Qg1+ {[%clk 0:00:09.1]} 50.
Kh3 {[%clk 0:00:15.6]} 50... Rh2# {[%clk 0:00:09.3]} 0-1

[Event "*** Titled Tuesday Blitz"]
[Site "Chess.com"]
[Date "2020.04.07"]
[Round "7"]
[White "Funkmaus"]
[Black "benko_008"]
[Result "0-1"]
[WhiteElo "2186"]
[BlackElo "2384"]
[TimeControl "180+1"]
[EndTime "14:19:08 PDT"]
[Termination "benko_008 won by resignation"]

1. d4 {[%clk 0:02:59.6]} 1... d5 {[%clk 0:02:58.7]} 2. Nf3 {[%clk 0:02:59.5]}
2... e6 {[%clk 0:02:56.8]} 3. c4 {[%clk 0:03:00.1]} 3... a6 {[%clk 0:02:54]} 4.
cxd5 {[%clk 0:02:58]} 4... exd5 {[%clk 0:02:52.8]} 5. Nc3 {[%clk 0:02:58.9]}
5... c6 {[%clk 0:02:52.4]} 6. Bf4 {[%clk 0:02:57]} 6... Bd6 {[%clk 0:02:51.2]}
7. Bg3 {[%clk 0:02:56.1]} 7... Ne7 {[%clk 0:02:49.9]} 8. e3 {[%clk 0:02:55.1]}
8... Nf5 {[%clk 0:02:48.1]} 9. Bd3 {[%clk 0:02:53.8]} 9... Nxg3 {[%clk 0:02:44]}
10. hxg3 {[%clk 0:02:54.7]} 10... h6 {[%clk 0:02:43.3]} 11. a3 {[%clk
0:02:54.5]} 11... Bg4 {[%clk 0:02:38.9]} 12. b4 {[%clk 0:02:52.1]} 12... Nd7
{[%clk 0:02:37.4]} 13. Qc2 {[%clk 0:02:35.3]} 13... Bxf3 {[%clk 0:02:29.6]} 14.
gxf3 {[%clk 0:02:36.2]} 14... Qe7 {[%clk 0:02:21.1]} 15. Na4 {[%clk 0:02:29.7]}
15... O-O {[%clk 0:02:07.1]} 16. Nc5 {[%clk 0:02:18.8]} 16... Nxc5 {[%clk
0:01:45.2]} 17. bxc5 {[%clk 0:02:19.7]} 17... Bxg3 {[%clk 0:01:36]} 18. fxg3
{[%clk 0:02:20.6]} 18... Qxe3+ {[%clk 0:01:35.2]} 19. Qe2 {[%clk 0:01:56.7]}
19... Qxd4 {[%clk 0:01:33.7]} 20. O-O-O {[%clk 0:01:07.6]} 20... Qa1+ {[%clk
0:01:20.8]} 21. Bb1 {[%clk 0:00:40.4]} 21... Qxa3+ {[%clk 0:01:18.3]} 22. Qb2
{[%clk 0:00:38.9]} 22... Qxc5+ {[%clk 0:01:11.5]} 23. Qc2 {[%clk 0:00:38.9]}
23... Qxc2+ {[%clk 0:01:07]} 24. Bxc2 {[%clk 0:00:39.5]} 24... Rfe8 {[%clk
0:01:05.9]} 25. Rhe1 {[%clk 0:00:37.6]} 25... Kf8 {[%clk 0:01:05.2]} 26. Kb2
{[%clk 0:00:35.8]} 26... Rxe1 {[%clk 0:01:00.8]} 27. Rxe1 {[%clk 0:00:36.6]}
27... c5 {[%clk 0:01:00.2]} 28. Re5 {[%clk 0:00:31.6]} 28... Rd8 {[%clk
0:00:57.6]} 29. Bb3 {[%clk 0:00:31.1]} 29... c4 {[%clk 0:00:57.2]} 30. Bc2
{[%clk 0:00:27.8]} 30... b5 {[%clk 0:00:54.3]} 31. Kc3 {[%clk 0:00:27.6]} 31...
d4+ {[%clk 0:00:54]} 32. Kb4 {[%clk 0:00:26.5]} 32... d3 {[%clk 0:00:47.7]} 33.
Bd1 {[%clk 0:00:26.5]} 33... a5+ {[%clk 0:00:44.5]} 34. Kxb5 {[%clk 0:00:26.3]}
34... c3 {[%clk 0:00:44.6]} 35. Rc5 {[%clk 0:00:19.8]} 35... c2 {[%clk
0:00:40.8]} 36. Bxc2 {[%clk 0:00:20.1]} 36... dxc2 {[%clk 0:00:41.7]} 37. Rxc2
{[%clk 0:00:20.4]} 37... Rd3 {[%clk 0:00:39.5]} 38. Rf2 {[%clk 0:00:20.1]} 38...
Ra3 {[%clk 0:00:37.3]} 39. g4 {[%clk 0:00:19.1]} 39... g5 {[%clk 0:00:34.5]} 40.
f4 {[%clk 0:00:18.6]} 40... Kg7 {[%clk 0:00:32.9]} 41. fxg5 {[%clk 0:00:18.1]}
41... hxg5 {[%clk 0:00:33.8]} 42. Rf5 {[%clk 0:00:18.1]} 42... Kg6 {[%clk
0:00:33.7]} 43. Rc5 {[%clk 0:00:14.1]} 43... f6 {[%clk 0:00:30.9]} 44. Rc8
{[%clk 0:00:12.4]} 44... Rg3 {[%clk 0:00:28.7]} 45. Kxa5 {[%clk 0:00:12.5]}
45... Rxg4 {[%clk 0:00:28.5]} 46. Kb5 {[%clk 0:00:12.2]} 46... Rd4 {[%clk
0:00:27.8]} 47. Kc5 {[%clk 0:00:11.8]} 47... Rd1 {[%clk 0:00:27.6]} 48. Re8
{[%clk 0:00:09.9]} 48... Kf5 {[%clk 0:00:26.8]} 49. Kc4 {[%clk 0:00:09.4]} 49...
g4 {[%clk 0:00:26.7]} 50. Rg8 {[%clk 0:00:07.7]} 50... Kf4 {[%clk 0:00:26]} 51.
Kc3 {[%clk 0:00:08.1]} 51... f5 {[%clk 0:00:25.4]} 52. Kc2 {[%clk 0:00:08.5]}
52... Rd7 {[%clk 0:00:24.7]} 0-1

[Event "*** Titled Tuesday Blitz"]
[Site "Chess.com"]
[Date "2020.04.07"]
[Round "7"]
[White "ValentinDragnev"]
[Black "Stameny"]
[Result "1-0"]
[WhiteElo "2728"]
[BlackElo "2522"]
[TimeControl "180+1"]
[EndTime "14:19:11 PDT"]
[Termination "ValentinDragnev won on time"]

1. d4 {[%clk 0:03:00.9]} 1... Nf6 {[%clk 0:02:57.6]} 2. Bf4 {[%clk 0:03:01.4]}
2... d5 {[%clk 0:02:54.6]} 3. e3 {[%clk 0:03:00.7]} 3... c5 {[%clk 0:02:53.4]}
4. Nf3 {[%clk 0:02:59.7]} 4... Nc6 {[%clk 0:02:52.3]} 5. Nbd2 {[%clk 0:02:59.6]}
5... Qb6 {[%clk 0:02:49.9]} 6. dxc5 {[%clk 0:02:59]} 6... Qxc5 {[%clk
0:02:49.3]} 7. a3 {[%clk 0:02:56.7]} 7... Bg4 {[%clk 0:02:46.8]} 8. c4 {[%clk
0:02:56.3]} 8... e5 {[%clk 0:02:40.4]} 9. Bg5 {[%clk 0:02:53.5]} 9... Ne4 {[%clk
0:02:39.2]} 10. b4 {[%clk 0:01:27.2]} 10... Qb6 {[%clk 0:01:37.6]} 11. cxd5
{[%clk 0:00:56.7]} 11... Nxg5 {[%clk 0:01:27.9]} 12. dxc6 {[%clk 0:00:54.9]}
12... bxc6 {[%clk 0:01:15.9]} 13. Be2 {[%clk 0:00:50]} 13... Nxf3+ {[%clk
0:01:09.4]} 14. Bxf3 {[%clk 0:00:50.3]} 14... Bxf3 {[%clk 0:01:05.8]} 15. Qxf3
{[%clk 0:00:51.2]} 15... Rd8 {[%clk 0:01:01.6]} 16. Rc1 {[%clk 0:00:45.2]} 16...
Rd5 {[%clk 0:00:55.2]} 17. Nc4 {[%clk 0:00:39.9]} 17... Qd8 {[%clk 0:00:43]} 18.
O-O {[%clk 0:00:39.8]} 18... Be7 {[%clk 0:00:40.2]} 19. Na5 {[%clk 0:00:40]}
19... c5 {[%clk 0:00:38]} 20. Nc6 {[%clk 0:00:32.5]} 20... Qd7 {[%clk
0:00:36.9]} 21. Nxe7 {[%clk 0:00:32.2]} 21... Kxe7 {[%clk 0:00:35.7]} 22. bxc5
{[%clk 0:00:24.2]} 22... Rc8 {[%clk 0:00:34.7]} 23. Qe4 {[%clk 0:00:19.1]} 23...
g6 {[%clk 0:00:22.4]} 24. Qb4 {[%clk 0:00:16]} 24... Qc6 {[%clk 0:00:22]} 25.
Rfd1 {[%clk 0:00:15.1]} 25... Rxd1+ {[%clk 0:00:19.7]} 26. Rxd1 {[%clk 0:00:16]}
26... Qxc5 {[%clk 0:00:19.6]} 27. Qh4+ {[%clk 0:00:16.4]} 27... Ke6 {[%clk
0:00:18]} 28. Qxh7 {[%clk 0:00:13.8]} 28... Qc2 {[%clk 0:00:13.6]} 29. Qh3+
{[%clk 0:00:11.6]} 29... Kf6 {[%clk 0:00:13.5]} 30. Qf3+ {[%clk 0:00:10.3]}
30... Kg7 {[%clk 0:00:13.3]} 31. h4 {[%clk 0:00:09.7]} 31... e4 {[%clk
0:00:11.2]} 32. Qg4 {[%clk 0:00:09.9]} 32... Rc7 {[%clk 0:00:07.3]} 33. Rd4
{[%clk 0:00:09.7]} 33... Qc1+ {[%clk 0:00:04.4]} 34. Kh2 {[%clk 0:00:09.7]}
34... Qxa3 {[%clk 0:00:04.9]} 35. Qxe4 {[%clk 0:00:07.8]} 35... Qc5 {[%clk
0:00:01.6]} 36. Rd5 {[%clk 0:00:07.1]} 36... Qc6 {[%clk 0:00:02]} 37. Qe5+
{[%clk 0:00:06.6]} 37... Kh7 {[%clk 0:00:01.4]} 38. Rd8 {[%clk 0:00:05.4]} 38...
f6 {[%clk 0:00:01.3]} 39. Qd4 {[%clk 0:00:02.7]} 1-0